[Event "Titled Tuesday Blitz August 17 2021"]
[White "Matthiesen, Martin"]
[Black "Politov, Pavel Y."]
[WhiteFideId "1404067"]
[BlackFideId "24110515"]
[WhiteElo "2337"]
[BlackElo "2090"]
[Result "0-1"]
[Round "08"]
[TimeControl "180+1"]
[Date "2021.08.18"]
[WhiteClock "0:00:02"]
[BlackClock "0:00:09"]

1. d4 {[%clk 0:03:00]}  Nf6 {[%clk 0:02:59]} 2. c4 {[%clk 0:03:00]}  g6 {[%clk 0:03:00]} 3. Nc3 {[%clk 0:03:00]}  d5 {[%clk 0:03:00]} 4. e3 {[%clk 0:02:55]}  Bg7 {[%clk 0:02:59]} 5. Nf3 {[%clk 0:02:54]}  O-O {[%clk 0:02:59]} 6. Bd2 {[%clk 0:02:54]}  c6 {[%clk 0:02:56]} 7. Rc1 {[%clk 0:02:52]}  a5 {[%clk 0:02:52]} 8. cxd5 {[%clk 0:02:42]}  Nxd5 {[%clk 0:02:52]} 9. Bc4 {[%clk 0:02:42]}  Nb6 {[%clk 0:02:51]} 10. Bb3 {[%clk 0:02:41]}  N8d7 {[%clk 0:02:45]} 11. O-O {[%clk 0:02:27]}  c5 {[%clk 0:02:44]} 12. d5 {[%clk 0:01:42]}  a4 {[%clk 0:02:43]} 13. Bc2 {[%clk 0:01:42]}  a3 {[%clk 0:02:38]} 14. b3 {[%clk 0:01:39]}  Nf6 {[%clk 0:02:14]} 15. e4 {[%clk 0:01:37]}  e6 {[%clk 0:02:11]} 16. Be3 {[%clk 0:01:35]}  exd5 {[%clk 0:02:05]} 17. Bxc5 {[%clk 0:01:35]}  Re8 {[%clk 0:02:02]} 18. exd5 {[%clk 0:00:56]}  Nbxd5 {[%clk 0:01:55]} 19. Nb5 {[%clk 0:00:51]}  Qa5 {[%clk 0:01:29]} 20. Bd3 {[%clk 0:00:50]}  Nb4 {[%clk 0:01:12]} 21. Bxb4 {[%clk 0:00:47]}  Qxb4 {[%clk 0:01:11]} 22. Nc7 {[%clk 0:00:48]}  Bg4 {[%clk 0:01:04]} 23. Nxa8 {[%clk 0:00:47]}  Rxa8 {[%clk 0:01:04]} 24. Bc4 {[%clk 0:00:45]}  Ne4 {[%clk 0:00:59]} 25. Qd5 {[%clk 0:00:39]}  Bxf3 {[%clk 0:00:52]} 26. Qxf7+ {[%clk 0:00:33]}  Kh8 {[%clk 0:00:52]} 27. Qxf3 {[%clk 0:00:33]}  Nd2 {[%clk 0:00:48]} 28. Qf7 {[%clk 0:00:22]}  Nxf1 {[%clk 0:00:47]} 29. Rxf1 {[%clk 0:00:23]}  Rd8 {[%clk 0:00:42]} 30. h4 {[%clk 0:00:20]}  Qd2 {[%clk 0:00:31]} 31. h5 {[%clk 0:00:19]}  gxh5 {[%clk 0:00:28]} 32. Qxh5 {[%clk 0:00:19]}  Qxa2 {[%clk 0:00:27]} 33. Qg5 {[%clk 0:00:17]}  Qd2 {[%clk 0:00:25]} 34. Qh5 {[%clk 0:00:12]}  a2 {[%clk 0:00:24]} 35. Be6 {[%clk 0:00:11]}  Qh6 {[%clk 0:00:15]} 36. Qxh6 {[%clk 0:00:10]}  Bxh6 {[%clk 0:00:16]} 37. Ra1 {[%clk 0:00:10]}  Rd6 {[%clk 0:00:14]} 38. Bc4 {[%clk 0:00:09]}  b5 {[%clk 0:00:13]} 39. Bxb5 {[%clk 0:00:08]}  Rd2 {[%clk 0:00:13]} 40. Re1 {[%clk 0:00:02]}  Rb2 {[%clk 0:00:09]} 0-1


[Site "https://www.chess.com"]

[Event "Titled Tuesday Blitz August 17 2021"]
[White "Maze, Sebastien"]
[Black "Cunjalo, Faris"]
[WhiteFideId "613762"]
[BlackFideId "14410710"]
[WhiteElo "2462"]
[BlackElo "2234"]
[Result "0-1"]
[Round "08"]
[TimeControl "180+1"]
[Date "2021.08.17"]
[WhiteClock "0:02:24"]
[BlackClock "0:02:05"]

1. e4 {[%clk 0:03:00]}  c5 {[%clk 0:02:51]} 2. Nf3 {[%clk 0:03:00]}  Nc6 {[%clk 0:02:51]} 3. Bb5 {[%clk 0:02:59]}  g6 {[%clk 0:02:52]} 4. O-O {[%clk 0:02:59]}  Bg7 {[%clk 0:02:52]} 5. Re1 {[%clk 0:02:59]}  e5 {[%clk 0:02:49]} 6. Bxc6 {[%clk 0:02:58]}  dxc6 {[%clk 0:02:49]} 7. d3 {[%clk 0:02:59]}  Qc7 {[%clk 0:02:49]} 8. a3 {[%clk 0:02:54]}  a5 {[%clk 0:02:46]} 9. Be3 {[%clk 0:02:54]}  b6 {[%clk 0:02:46]} 10. Nbd2 {[%clk 0:02:54]}  Ne7 {[%clk 0:02:31]} 11. Nc4 {[%clk 0:02:41]}  Be6 {[%clk 0:02:06]} 12. b4 {[%clk 0:02:25]}  Bxc4 {[%clk 0:02:04]} 13. dxc4 {[%clk 0:02:25]}  axb4 {[%clk 0:02:05]} 14. axb4 {[%clk 0:02:25]}  Rxa1 {[%clk 0:02:06]} 15. Qb1 {[%clk 0:02:24]}  Rxb1 {[%clk 0:02:05]} 0-1


[Site "https://www.chess.com"]

[Event "Titled Tuesday Blitz August 17 2021"]
[White "Mikhnenko, Alexander"]
[Black "Maiorov, Nikita"]
[WhiteFideId "34143014"]
[BlackFideId "13501720"]
[WhiteElo "2135"]
[BlackElo "2440"]
[Result "1-0"]
[Round "08"]
[TimeControl "180+1"]
[Date "2021.08.17"]
[WhiteClock "0:00:33"]
[BlackClock "0:00:35"]

1. Nf3 {[%clk 0:03:00]}  Nf6 {[%clk 0:02:56]} 2. c4 {[%clk 0:02:56]}  b6 {[%clk 0:02:55]} 3. g3 {[%clk 0:02:50]}  Bb7 {[%clk 0:02:51]} 4. Bg2 {[%clk 0:02:50]}  e6 {[%clk 0:02:51]} 5. O-O {[%clk 0:02:49]}  Be7 {[%clk 0:02:49]} 6. d4 {[%clk 0:02:47]}  O-O {[%clk 0:02:49]} 7. b3 {[%clk 0:02:42]}  c5 {[%clk 0:02:43]} 8. dxc5 {[%clk 0:02:39]}  bxc5 {[%clk 0:02:42]} 9. Bb2 {[%clk 0:02:39]}  d6 {[%clk 0:02:42]} 10. e3 {[%clk 0:02:37]}  Nc6 {[%clk 0:02:41]} 11. Nc3 {[%clk 0:02:34]}  Qb6 {[%clk 0:02:39]} 12. Qe2 {[%clk 0:02:29]}  Rfd8 {[%clk 0:02:37]} 13. Rfd1 {[%clk 0:02:27]}  a6 {[%clk 0:02:36]} 14. Rac1 {[%clk 0:02:26]}  Nb4 {[%clk 0:02:32]} 15. Nd2 {[%clk 0:02:07]}  Bxg2 {[%clk 0:02:31]} 16. Kxg2 {[%clk 0:02:08]}  Qb7+ {[%clk 0:02:22]} 17. Qf3 {[%clk 0:02:04]}  d5 {[%clk 0:02:22]} 18. cxd5 {[%clk 0:02:02]}  exd5 {[%clk 0:02:22]} 19. Nc4 {[%clk 0:01:52]}  Rab8 {[%clk 0:02:17]} 20. Na3 {[%clk 0:01:48]}  Bf8 {[%clk 0:01:54]} 21. Nc2 {[%clk 0:01:39]}  Nc6 {[%clk 0:01:46]} 22. Nxd5 {[%clk 0:01:32]}  Nxd5 {[%clk 0:01:40]} 23. Rxd5 {[%clk 0:01:33]}  Rxd5 {[%clk 0:01:40]} 24. Qxd5 {[%clk 0:01:33]}  Rd8 {[%clk 0:01:40]} 25. Qf3 {[%clk 0:01:29]}  Qd7 {[%clk 0:01:35]} 26. Bc3 {[%clk 0:01:16]}  Qe6 {[%clk 0:01:19]} 27. Na3 {[%clk 0:01:14]}  Rd3 {[%clk 0:01:07]} 28. Nc4 {[%clk 0:01:12]}  Nd4 {[%clk 0:01:06]} 29. Bxd4 {[%clk 0:00:50]}  cxd4 {[%clk 0:01:05]} 30. Rd1 {[%clk 0:00:50]}  Rxd1 {[%clk 0:01:00]} 31. Qxd1 {[%clk 0:00:51]}  Qe4+ {[%clk 0:00:50]} 32. Qf3 {[%clk 0:00:51]}  Qc2 {[%clk 0:00:47]} 33. Ne5 {[%clk 0:00:44]}  Qc7 {[%clk 0:00:38]} 34. exd4 {[%clk 0:00:44]}  g6 {[%clk 0:00:38]} 35. Qd5 {[%clk 0:00:42]}  Bg7 {[%clk 0:00:36]} 36. h4 {[%clk 0:00:38]}  Bf6 {[%clk 0:00:36]} 37. h5 {[%clk 0:00:35]}  Kg7 {[%clk 0:00:35]} 38. hxg6 {[%clk 0:00:34]}  hxg6 {[%clk 0:00:35]} 39. Ng4 {[%clk 0:00:33]} 1-0


[Site "https://www.chess.com"]

[Event "Titled Tuesday Blitz August 17 2021"]
[White "Mirzoev, Azer"]
[Black "Barp, Alberto"]
[WhiteFideId "13400304"]
[BlackFideId "872555"]
[WhiteElo "2525"]
[BlackElo "2229"]
[Result "1/2-1/2"]
[Round "08"]
[TimeControl "180+1"]
[Date "2021.08.17"]
[WhiteClock "0:00:10"]
[BlackClock "0:00:13"]

1. d4 {[%clk 0:03:00]}  d5 {[%clk 0:02:57]} 2. Bf4 {[%clk 0:02:58]}  Nf6 {[%clk 0:02:50]} 3. e3 {[%clk 0:02:59]}  Bf5 {[%clk 0:02:49]} 4. Nf3 {[%clk 0:02:56]}  e6 {[%clk 0:02:45]} 5. c4 {[%clk 0:02:55]}  c6 {[%clk 0:02:35]} 6. Nc3 {[%clk 0:02:54]}  Be7 {[%clk 0:02:34]} 7. Qb3 {[%clk 0:02:53]}  Qb6 {[%clk 0:02:32]} 8. c5 {[%clk 0:02:53]}  Qxb3 {[%clk 0:02:31]} 9. axb3 {[%clk 0:02:54]}  a6 {[%clk 0:02:32]} 10. b4 {[%clk 0:02:54]}  O-O {[%clk 0:02:29]} 11. b5 {[%clk 0:02:54]}  cxb5 {[%clk 0:02:29]} 12. Bxb5 {[%clk 0:02:50]}  Nc6 {[%clk 0:02:13]} 13. Bxc6 {[%clk 0:02:44]}  bxc6 {[%clk 0:02:13]} 14. Ne5 {[%clk 0:02:44]}  Rfc8 {[%clk 0:02:12]} 15. Na4 {[%clk 0:02:43]}  Bd8 {[%clk 0:01:58]} 16. h3 {[%clk 0:02:38]}  Ra7 {[%clk 0:01:55]} 17. O-O {[%clk 0:02:03]}  Rb7 {[%clk 0:01:51]} 18. Rfc1 {[%clk 0:02:03]}  Ne4 {[%clk 0:01:45]} 19. Nc3 {[%clk 0:01:49]}  f6 {[%clk 0:01:23]} 20. Nf3 {[%clk 0:01:48]}  Rxb2 {[%clk 0:01:19]} 21. Nxe4 {[%clk 0:01:40]}  dxe4 {[%clk 0:01:14]} 22. Ne1 {[%clk 0:01:40]}  Ra8 {[%clk 0:01:13]} 23. Nc2 {[%clk 0:01:39]}  a5 {[%clk 0:01:10]} 24. Na3 {[%clk 0:01:39]}  a4 {[%clk 0:01:07]} 25. Nc4 {[%clk 0:01:39]}  Rb4 {[%clk 0:01:06]} 26. Rc3 {[%clk 0:01:35]}  Bg6 {[%clk 0:00:59]} 27. Nd6 {[%clk 0:01:24]}  Bc7 {[%clk 0:00:53]} 28. g4 {[%clk 0:01:22]}  h5 {[%clk 0:00:52]} 29. Kg2 {[%clk 0:01:16]}  hxg4 {[%clk 0:00:51]} 30. hxg4 {[%clk 0:01:16]}  Bf7 {[%clk 0:00:50]} 31. Bg3 {[%clk 0:01:12]}  Bg6 {[%clk 0:00:35]} 32. Raa3 {[%clk 0:01:08]}  Ra6 {[%clk 0:00:35]} 33. Bf4 {[%clk 0:00:56]}  Kf8 {[%clk 0:00:34]} 34. Kg3 {[%clk 0:00:55]}  Bb8 {[%clk 0:00:33]} 35. g5 {[%clk 0:00:53]}  Ke7 {[%clk 0:00:33]} 36. gxf6+ {[%clk 0:00:47]}  gxf6 {[%clk 0:00:33]} 37. Nc8+ {[%clk 0:00:37]}  Kd8 {[%clk 0:00:30]} 38. Nb6 {[%clk 0:00:35]}  e5 {[%clk 0:00:21]} 39. dxe5 {[%clk 0:00:35]}  Bxe5 {[%clk 0:00:21]} 40. Bxe5 {[%clk 0:00:34]}  fxe5 {[%clk 0:00:22]} 41. Rc1 {[%clk 0:00:33]}  Ra5 {[%clk 0:00:16]} 42. Kg4 {[%clk 0:00:31]}  Ke7 {[%clk 0:00:15]} 43. Kg5 {[%clk 0:00:31]}  Bf7 {[%clk 0:00:14]} 44. Kf5 {[%clk 0:00:30]}  Be6+ {[%clk 0:00:13]} 45. Kg5 {[%clk 0:00:27]}  Rbb5 {[%clk 0:00:14]} 46. Rxa4 {[%clk 0:00:22]}  Rxc5 {[%clk 0:00:12]} 47. Rxc5 {[%clk 0:00:23]}  Rxc5 {[%clk 0:00:12]} 48. Ra7+ {[%clk 0:00:20]}  Kd6 {[%clk 0:00:12]} 49. Ra1 {[%clk 0:00:14]}  Rc2 {[%clk 0:00:11]} 50. Rd1+ {[%clk 0:00:13]}  Kc7 {[%clk 0:00:11]} 51. Kf6 {[%clk 0:00:13]}  Kxb6 {[%clk 0:00:11]} 52. Kxe6 {[%clk 0:00:13]}  Rxf2 {[%clk 0:00:11]} 53. Kxe5 {[%clk 0:00:13]}  Rb2 {[%clk 0:00:10]} 54. Kxe4 {[%clk 0:00:13]}  c5 {[%clk 0:00:11]} 55. Kf5 {[%clk 0:00:12]}  c4 {[%clk 0:00:10]} 56. e4 {[%clk 0:00:12]}  Kc5 {[%clk 0:00:11]} 57. e5 {[%clk 0:00:12]}  Re2 {[%clk 0:00:11]} 58. Rd8 {[%clk 0:00:10]}  c3 {[%clk 0:00:11]} 59. e6 {[%clk 0:00:09]}  Kb4 {[%clk 0:00:11]} 60. Rb8+ {[%clk 0:00:09]}  Ka3 {[%clk 0:00:10]} 61. Rc8 {[%clk 0:00:08]}  Kb2 {[%clk 0:00:11]} 62. Kf6 {[%clk 0:00:09]}  c2 {[%clk 0:00:11]} 63. e7 {[%clk 0:00:09]}  c1=Q {[%clk 0:00:12]} 64. Rxc1 {[%clk 0:00:09]}  Kxc1 {[%clk 0:00:13]} 65. Kf7 {[%clk 0:00:09]}  Rxe7+ {[%clk 0:00:13]} 66. Kxe7 {[%clk 0:00:10]} 1/2-1/2


[Site "https://www.chess.com"]

[Event "Titled Tuesday Blitz August 17 2021"]
[White "Moroni, Luca Jr"]
[Black "Costachi, Mihnea"]
[WhiteFideId "865834"]
[BlackFideId "1217518"]
[WhiteElo "2491"]
[BlackElo "2482"]
[Result "1-0"]
[Round "08"]
[TimeControl "180+1"]
[Date "2021.08.17"]
[WhiteClock "0:00:05"]
[BlackClock "0:00:04"]

1. d4 {[%clk 0:03:00]}  Nf6 {[%clk 0:02:59]} 2. c4 {[%clk 0:02:59]}  g6 {[%clk 0:03:00]} 3. Nc3 {[%clk 0:02:59]}  Bg7 {[%clk 0:03:01]} 4. e4 {[%clk 0:02:59]}  O-O {[%clk 0:03:02]} 5. Bd3 {[%clk 0:02:58]}  d6 {[%clk 0:03:02]} 6. Nge2 {[%clk 0:02:58]}  c5 {[%clk 0:03:00]} 7. d5 {[%clk 0:02:57]}  a6 {[%clk 0:02:59]} 8. a4 {[%clk 0:02:54]}  Nbd7 {[%clk 0:02:59]} 9. O-O {[%clk 0:02:52]}  e6 {[%clk 0:02:59]} 10. Bg5 {[%clk 0:02:49]}  h6 {[%clk 0:02:58]} 11. dxe6 {[%clk 0:02:32]}  hxg5 {[%clk 0:02:52]} 12. exd7 {[%clk 0:02:32]}  Bxd7 {[%clk 0:02:53]} 13. Qd2 {[%clk 0:02:32]}  Ng4 {[%clk 0:02:53]} 14. Rad1 {[%clk 0:02:24]}  Ne5 {[%clk 0:02:46]} 15. b3 {[%clk 0:02:19]}  Qb6 {[%clk 0:02:36]} 16. Bc2 {[%clk 0:02:11]}  Bc6 {[%clk 0:02:29]} 17. Qxg5 {[%clk 0:02:07]}  Rad8 {[%clk 0:02:27]} 18. f4 {[%clk 0:01:54]}  Nd7 {[%clk 0:02:27]} 19. f5 {[%clk 0:01:52]}  Bf6 {[%clk 0:02:17]} 20. Qh6 {[%clk 0:01:39]}  Ne5 {[%clk 0:02:15]} 21. Nd5 {[%clk 0:01:24]}  Bxd5 {[%clk 0:02:14]} 22. exd5 {[%clk 0:01:24]}  Bg7 {[%clk 0:01:59]} 23. Qh4 {[%clk 0:01:13]}  Rde8 {[%clk 0:01:44]} 24. f6 {[%clk 0:01:09]}  Bh8 {[%clk 0:01:44]} 25. Ng3 {[%clk 0:01:08]}  Qd8 {[%clk 0:01:31]} 26. Rf4 {[%clk 0:00:50]}  Nd7 {[%clk 0:01:23]} 27. Rdf1 {[%clk 0:00:45]}  Re5 {[%clk 0:01:18]} 28. Ne4 {[%clk 0:00:33]}  Rxe4 {[%clk 0:01:14]} 29. Bxe4 {[%clk 0:00:32]}  Ne5 {[%clk 0:00:42]} 30. Qh6 {[%clk 0:00:30]}  Re8 {[%clk 0:00:42]} 31. h4 {[%clk 0:00:15]}  Qd7 {[%clk 0:00:20]} 32. h5 {[%clk 0:00:14]}  Ng4 {[%clk 0:00:20]} 33. Qg5 {[%clk 0:00:10]}  Ne3 {[%clk 0:00:18]} 34. hxg6 {[%clk 0:00:10]}  Nxf1 {[%clk 0:00:16]} 35. g7 {[%clk 0:00:05]}  Rxe4 {[%clk 0:00:03]} 36. gxh8=Q+ {[%clk 0:00:05]}  Kxh8 {[%clk 0:00:04]} 37. Qg7# {[%clk 0:00:05]} 1-0


[Site "https://www.chess.com"]

[Event "Titled Tuesday Blitz August 17 2021"]
[White "Obregon, Andres Carlos"]
[Black "Silich, Yahor"]
[WhiteFideId "111724"]
[BlackFideId "13513656"]
[WhiteElo "2572"]
[BlackElo "2142"]
[Result "1-0"]
[Round "08"]
[TimeControl "180+1"]
[Date "2021.08.17"]
[WhiteClock "0:02:20"]
[BlackClock "0:02:20"]

1. d4 {[%clk 0:03:00]}  Nf6 {[%clk 0:02:58]} 2. Nf3 {[%clk 0:03:00]}  g6 {[%clk 0:02:58]} 3. Bg5 {[%clk 0:03:01]}  Bg7 {[%clk 0:02:59]} 4. Nbd2 {[%clk 0:03:01]}  O-O {[%clk 0:02:59]} 5. e4 {[%clk 0:03:01]}  d6 {[%clk 0:03:00]} 6. c3 {[%clk 0:03:01]}  c5 {[%clk 0:02:59]} 7. dxc5 {[%clk 0:03:01]}  dxc5 {[%clk 0:02:59]} 8. Bc4 {[%clk 0:03:02]}  h6 {[%clk 0:02:58]} 9. Bh4 {[%clk 0:03:00]}  Nc6 {[%clk 0:02:58]} 10. O-O {[%clk 0:03:00]}  Nh5 {[%clk 0:02:58]} 11. Re1 {[%clk 0:02:57]}  Qc7 {[%clk 0:02:58]} 12. a4 {[%clk 0:02:56]}  b6 {[%clk 0:02:56]} 13. Qe2 {[%clk 0:02:54]}  Bg4 {[%clk 0:02:51]} 14. h3 {[%clk 0:02:42]}  Bd7 {[%clk 0:02:50]} 15. e5 {[%clk 0:02:36]}  Nf4 {[%clk 0:02:35]} 16. Qe4 {[%clk 0:02:32]}  g5 {[%clk 0:02:31]} 17. Bxg5 {[%clk 0:02:32]}  hxg5 {[%clk 0:02:30]} 18. Nxg5 {[%clk 0:02:32]}  Rfd8 {[%clk 0:02:20]} 19. Qh7+ {[%clk 0:02:20]}  Kf8 {[%clk 0:02:20]} 20. Bxf7 {[%clk 0:02:20]} 1-0


[Site "https://www.chess.com"]

[Event "Titled Tuesday Blitz August 17 2021"]
[White "Paravyan, David"]
[Black "Awatramani, Janak"]
[WhiteFideId "4194985"]
[BlackFideId "2608359"]
[WhiteElo "2562"]
[BlackElo "2924"]
[Result "1-0"]
[Round "08"]
[TimeControl "180+1"]
[Date "2021.08.17"]
[WhiteClock "0:01:00"]
[BlackClock "0:00:07"]

1. e4 {[%clk 0:03:00]}  e6 {[%clk 0:02:57]} 2. d4 {[%clk 0:03:01]}  d5 {[%clk 0:02:56]} 3. exd5 {[%clk 0:03:01]}  exd5 {[%clk 0:02:56]} 4. Nf3 {[%clk 0:03:02]}  Nf6 {[%clk 0:02:57]} 5. Bd3 {[%clk 0:03:02]}  Be7 {[%clk 0:02:57]} 6. O-O {[%clk 0:03:03]}  O-O {[%clk 0:02:58]} 7. h3 {[%clk 0:03:02]}  c6 {[%clk 0:02:57]} 8. Re1 {[%clk 0:03:03]}  Re8 {[%clk 0:02:58]} 9. Bf4 {[%clk 0:03:03]}  Nbd7 {[%clk 0:02:58]} 10. Nbd2 {[%clk 0:03:02]}  Nf8 {[%clk 0:02:58]} 11. c3 {[%clk 0:03:01]}  Be6 {[%clk 0:02:56]} 12. Qb3 {[%clk 0:03:00]}  b5 {[%clk 0:02:51]} 13. a4 {[%clk 0:03:00]}  a6 {[%clk 0:02:51]} 14. Ne5 {[%clk 0:02:58]}  Qc8 {[%clk 0:02:43]} 15. Ndf3 {[%clk 0:02:58]}  N6d7 {[%clk 0:02:38]} 16. Qc2 {[%clk 0:02:53]}  Nxe5 {[%clk 0:02:34]} 17. Nxe5 {[%clk 0:02:54]}  b4 {[%clk 0:01:57]} 18. c4 {[%clk 0:02:44]}  c5 {[%clk 0:01:51]} 19. cxd5 {[%clk 0:02:40]}  Bxd5 {[%clk 0:01:50]} 20. Bf5 {[%clk 0:02:15]}  Be6 {[%clk 0:01:50]} 21. Be4 {[%clk 0:02:11]}  cxd4 {[%clk 0:01:46]} 22. Qd3 {[%clk 0:02:02]}  Ra7 {[%clk 0:01:37]} 23. Rac1 {[%clk 0:02:01]}  Rc7 {[%clk 0:01:31]} 24. Nc6 {[%clk 0:02:00]}  Bf6 {[%clk 0:00:59]} 25. Bxc7 {[%clk 0:01:53]}  Qxc7 {[%clk 0:01:00]} 26. Nxd4 {[%clk 0:01:54]}  Qf4 {[%clk 0:00:57]} 27. Nxe6 {[%clk 0:01:52]}  Nxe6 {[%clk 0:00:55]} 28. Bxh7+ {[%clk 0:01:50]}  Kh8 {[%clk 0:00:55]} 29. Bf5 {[%clk 0:01:49]}  Rd8 {[%clk 0:00:42]} 30. Qe4 {[%clk 0:01:48]}  Bxb2 {[%clk 0:00:35]} 31. Rb1 {[%clk 0:01:44]}  Bc3 {[%clk 0:00:12]} 32. Bxe6 {[%clk 0:01:43]}  Qxe4 {[%clk 0:00:12]} 33. Rxe4 {[%clk 0:01:44]}  fxe6 {[%clk 0:00:13]} 34. Rexb4 {[%clk 0:01:27]}  Bxb4 {[%clk 0:00:14]} 35. Rxb4 {[%clk 0:01:27]}  Rd6 {[%clk 0:00:13]} 36. g3 {[%clk 0:01:19]}  Kh7 {[%clk 0:00:13]} 37. Kg2 {[%clk 0:01:19]}  Kg6 {[%clk 0:00:14]} 38. Kf3 {[%clk 0:01:19]}  Kf5 {[%clk 0:00:14]} 39. Rf4+ {[%clk 0:01:19]}  Ke5 {[%clk 0:00:13]} 40. Kg4 {[%clk 0:01:08]}  a5 {[%clk 0:00:08]} 41. Kg5 {[%clk 0:01:08]}  Rb6 {[%clk 0:00:06]} 42. Kg6 {[%clk 0:01:02]}  Rb7 {[%clk 0:00:06]} 43. h4 {[%clk 0:01:01]}  Kd5 {[%clk 0:00:06]} 44. h5 {[%clk 0:01:00]}  e5 {[%clk 0:00:07]} 45. Rf7 {[%clk 0:01:00]} 1-0


[Site "https://www.chess.com"]

[Event "Titled Tuesday Blitz August 17 2021"]
[White "Perez Gormaz, Matias"]
[Black "Martins, Vinicius Tine"]
[WhiteFideId "3406342"]
[BlackFideId "2112884"]
[WhiteElo "2352"]
[BlackElo "2373"]
[Result "1-0"]
[Round "08"]
[TimeControl "180+1"]
[Date "2021.08.17"]
[WhiteClock "0:00:32"]
[BlackClock "0:00:01"]

1. e4 {[%clk 0:03:00]}  c5 {[%clk 0:02:59]} 2. Nf3 {[%clk 0:03:01]}  d6 {[%clk 0:03:00]} 3. d4 {[%clk 0:03:01]}  cxd4 {[%clk 0:03:00]} 4. Nxd4 {[%clk 0:03:02]}  Nf6 {[%clk 0:03:00]} 5. Nc3 {[%clk 0:03:03]}  g6 {[%clk 0:03:00]} 6. g3 {[%clk 0:03:03]}  Nc6 {[%clk 0:02:59]} 7. Nde2 {[%clk 0:03:01]}  Bd7 {[%clk 0:02:58]} 8. Bg2 {[%clk 0:03:01]}  Qc8 {[%clk 0:02:56]} 9. h3 {[%clk 0:03:01]}  Bg7 {[%clk 0:02:55]} 10. Nf4 {[%clk 0:03:01]}  O-O {[%clk 0:02:54]} 11. O-O {[%clk 0:02:56]}  e5 {[%clk 0:02:45]} 12. Nfe2 {[%clk 0:02:53]}  Bxh3 {[%clk 0:02:43]} 13. Bg5 {[%clk 0:02:46]}  Bxg2 {[%clk 0:02:29]} 14. Kxg2 {[%clk 0:02:47]}  Qd7 {[%clk 0:02:25]} 15. Bxf6 {[%clk 0:02:46]}  Bxf6 {[%clk 0:02:24]} 16. Nd5 {[%clk 0:02:47]}  Bg7 {[%clk 0:02:24]} 17. Qd3 {[%clk 0:02:43]}  f5 {[%clk 0:02:20]} 18. f3 {[%clk 0:02:40]}  Rf7 {[%clk 0:02:15]} 19. Rad1 {[%clk 0:02:38]}  Raf8 {[%clk 0:02:13]} 20. Ne3 {[%clk 0:02:29]}  Bh6 {[%clk 0:02:02]} 21. Nc4 {[%clk 0:02:15]}  fxe4 {[%clk 0:01:55]} 22. Qxe4 {[%clk 0:02:06]}  Rf6 {[%clk 0:01:50]} 23. Rd3 {[%clk 0:02:01]}  Qe7 {[%clk 0:00:49]} 24. c3 {[%clk 0:01:54]}  b5 {[%clk 0:00:36]} 25. Qd5+ {[%clk 0:01:46]}  Kh8 {[%clk 0:00:30]} 26. Nxd6 {[%clk 0:01:42]}  Nd8 {[%clk 0:00:13]} 27. Ne4 {[%clk 0:01:39]}  Rf5 {[%clk 0:00:10]} 28. Qxb5 {[%clk 0:01:30]}  Ne6 {[%clk 0:00:09]} 29. Qd7 {[%clk 0:01:28]}  Qxd7 {[%clk 0:00:07]} 30. Rxd7 {[%clk 0:01:29]}  Be3 {[%clk 0:00:04]} 31. Rh1 {[%clk 0:01:15]}  h5 {[%clk 0:00:04]} 32. Rhd1 {[%clk 0:01:15]}  Rxf3 {[%clk 0:00:03]} 33. Re7 {[%clk 0:00:58]}  Ng7 {[%clk 0:00:01]} 34. Rdd7 {[%clk 0:00:45]}  Bh6 {[%clk 0:00:01]} 35. Rxa7 {[%clk 0:00:32]} 1-0


[Site "https://www.chess.com"]

[Event "Titled Tuesday Blitz August 17 2021"]
[White "Pert, Richard G"]
[Black "Sokolovsky, Yahli"]
[WhiteFideId "404748"]
[BlackFideId "2820242"]
[WhiteElo "2441"]
[BlackElo "1770"]
[Result "0-1"]
[Round "08"]
[TimeControl "180+1"]
[Date "2021.08.17"]
[WhiteClock "0:00:03"]
[BlackClock "0:00:04"]

1. e4 {[%clk 0:03:00]}  g6 {[%clk 0:02:59]} 2. Nc3 {[%clk 0:02:57]}  Bg7 {[%clk 0:02:59]} 3. d4 {[%clk 0:02:58]}  d6 {[%clk 0:02:57]} 4. Be3 {[%clk 0:02:56]}  a6 {[%clk 0:02:53]} 5. Qd2 {[%clk 0:02:55]}  b5 {[%clk 0:02:52]} 6. f3 {[%clk 0:02:51]}  Bb7 {[%clk 0:02:42]} 7. a4 {[%clk 0:02:50]}  b4 {[%clk 0:02:41]} 8. Nce2 {[%clk 0:02:50]}  a5 {[%clk 0:02:38]} 9. c3 {[%clk 0:02:50]}  Na6 {[%clk 0:02:35]} 10. Nh3 {[%clk 0:02:48]}  c5 {[%clk 0:02:32]} 11. Nf2 {[%clk 0:02:44]}  Nf6 {[%clk 0:02:24]} 12. Bh6 {[%clk 0:02:35]}  O-O {[%clk 0:02:22]} 13. Bxg7 {[%clk 0:02:34]}  Kxg7 {[%clk 0:02:23]} 14. d5 {[%clk 0:02:31]}  e6 {[%clk 0:02:18]} 15. dxe6 {[%clk 0:02:29]}  fxe6 {[%clk 0:02:17]} 16. Nf4 {[%clk 0:02:29]}  Qe7 {[%clk 0:02:10]} 17. Bb5 {[%clk 0:02:27]}  Nc7 {[%clk 0:02:02]} 18. O-O {[%clk 0:02:26]}  e5 {[%clk 0:01:58]} 19. Ne2 {[%clk 0:02:13]}  Nxb5 {[%clk 0:01:52]} 20. axb5 {[%clk 0:02:13]}  Qc7 {[%clk 0:01:32]} 21. c4 {[%clk 0:02:10]}  Bc8 {[%clk 0:01:30]} 22. Ng3 {[%clk 0:02:07]}  Be6 {[%clk 0:01:27]} 23. Qd3 {[%clk 0:02:04]}  Rfd8 {[%clk 0:01:05]} 24. Nd1 {[%clk 0:02:03]}  Nd7 {[%clk 0:00:51]} 25. Ne3 {[%clk 0:02:02]}  Nb6 {[%clk 0:00:52]} 26. f4 {[%clk 0:02:01]}  exf4 {[%clk 0:00:47]} 27. Rxf4 {[%clk 0:02:02]}  d5 {[%clk 0:00:47]} 28. Raf1 {[%clk 0:01:48]}  dxc4 {[%clk 0:00:46]} 29. Qe2 {[%clk 0:01:43]}  Rf8 {[%clk 0:00:41]} 30. Nef5+ {[%clk 0:01:35]}  gxf5 {[%clk 0:00:37]} 31. exf5 {[%clk 0:01:35]}  Bf7 {[%clk 0:00:29]} 32. f6+ {[%clk 0:01:32]}  Kh8 {[%clk 0:00:28]} 33. Rh4 {[%clk 0:01:30]}  Bg6 {[%clk 0:00:26]} 34. Qg4 {[%clk 0:01:21]}  Qf7 {[%clk 0:00:26]} 35. Rh6 {[%clk 0:01:07]}  Nd5 {[%clk 0:00:23]} 36. Qg5 {[%clk 0:00:47]}  Nxf6 {[%clk 0:00:23]} 37. h4 {[%clk 0:00:43]}  Qg7 {[%clk 0:00:18]} 38. Kh2 {[%clk 0:00:33]}  Ng8 {[%clk 0:00:18]} 39. Rxg6 {[%clk 0:00:25]}  Qxg6 {[%clk 0:00:17]} 40. Qe5+ {[%clk 0:00:19]}  Qg7 {[%clk 0:00:17]} 41. Qxc5 {[%clk 0:00:20]}  Rxf1 {[%clk 0:00:17]} 42. Nxf1 {[%clk 0:00:20]}  Re8 {[%clk 0:00:15]} 43. Qxc4 {[%clk 0:00:19]}  Qe5+ {[%clk 0:00:16]} 44. Ng3 {[%clk 0:00:19]}  Nf6 {[%clk 0:00:16]} 45. Qc6 {[%clk 0:00:17]}  Nh5 {[%clk 0:00:15]} 46. Kg1 {[%clk 0:00:11]}  Qe3+ {[%clk 0:00:10]} 47. Kh1 {[%clk 0:00:08]}  Nxg3+ {[%clk 0:00:10]} 48. Kh2 {[%clk 0:00:08]}  Nf1+ {[%clk 0:00:10]} 49. Kh1 {[%clk 0:00:09]}  Qe5 {[%clk 0:00:09]} 50. Qc4 {[%clk 0:00:05]}  Ng3+ {[%clk 0:00:09]} 51. Kg1 {[%clk 0:00:05]}  Ne2+ {[%clk 0:00:06]} 52. Kh1 {[%clk 0:00:01]}  Nf4 {[%clk 0:00:07]} 53. Kh2 {[%clk 0:00:01]}  Nd5+ {[%clk 0:00:05]} 54. Kh3 {[%clk 0:00:01]}  Qf5+ {[%clk 0:00:03]} 55. g4 {[%clk 0:00:01]}  Qf3+ {[%clk 0:00:03]} 56. Kh2 {[%clk 0:00:02]}  Re2+ {[%clk 0:00:03]} 57. Kg1 {[%clk 0:00:03]}  Qf2+ {[%clk 0:00:03]} 58. Kh1 {[%clk 0:00:03]}  Qg2# {[%clk 0:00:04]} 0-1


[Site "https://www.chess.com"]